bitfinex/quotes_BTCUSD_20240908
["timestamp","ask_amount","ask_price","bid_price","bid_amount"]
[1725826384894,0.000815,54485.0,54484.0,1.8915967]
[1725826385135,0.000815,54485.0,54484.0,1.9925967]
[1725826386465,0.000815,54485.0,54484.0,1.9785967]
[1725826386681,0.000815,54485.0,54484.0,1.9645967]
[1725826386904,0.000815,54485.0,54484.0,1.9925967]
[1725826387310,0.000815,54485.0,54484.0,1.9785967]
[1725826387761,0.000815,54485.0,54484.0,1.9925967]
[1725826388871,0.000815,54485.0,54484.0,2.02009521]
[1725826390472,0.000815,54485.0,54484.0,2.03732783]
[1725826392740,0.000815,54485.0,54484.0,2.03732636]
[1725826393444,0.000814,54489.0,54488.0,1.496489]
[1725826393672,0.000814,54489.0,54488.0,1.86970226]
[1725826394766,0.000814,54489.0,54488.0,1.88370226]
[1725826394981,0.000814,54489.0,54488.0,1.89770226]
[1725826398789,0.293509,54513.0,54499.0,0.293581]
[1725826399013,0.55430836,54510.0,54506.0,0.14677]
[1725826399227,0.146759,54511.0,54507.0,0.146768]
[1725826399655,0.293509,54513.0,54507.0,0.146768]
[1725826400087,0.146757,54512.0,54507.0,0.146768]
[1725826400313,0.146757,54512.0,54508.0,0.0440316]
[1725826401689,0.146759,54511.0,54508.0,0.0440316]
[1725826402335,0.146759,54511.0,54507.0,0.146768]
[1725826402835,0.146759,54511.0,54508.0,0.005]
[1725826403065,0.146759,54511.0,54507.0,0.147768]
[1725826403284,0.146759,54511.0,54508.0,0.006]
[1725826403721,0.146759,54511.0,54507.0,0.150768]
[1725826403938,0.17552714,54511.0,54507.0,0.156768]
[1725826404157,0.146762,54510.0,54507.0,0.004]
[1725826404427,0.146762,54510.0,54505.0,0.146773]
[1725826404637,0.146762,54510.0,54508.0,0.01]
[1725826404865,0.146762,54510.0,54508.0,0.004]
[1725826405741,0.146762,54510.0,54506.0,0.146772]
[1725826405948,0.146762,54510.0,54507.0,0.005]
[1725826406604,0.146762,54510.0,54507.0,0.006]
[1725826406755,0.146762,54510.0,54508.0,0.005]
[1725826407350,0.146762,54510.0,54507.0,0.007]
[1725826407569,0.146762,54510.0,54507.0,0.012]
[1725826408009,0.146762,54510.0,54507.0,0.005]
[1725826408219,0.146762,54510.0,54508.0,0.007]
[1725826408654,0.146762,54510.0,54507.0,0.005]
[1725826409302,0.146762,54510.0,54506.0,0.146772]
[1725826409776,0.146762,54510.0,54508.0,0.005]
[1725826410192,0.146762,54510.0,54507.0,0.007]
[1725826410410,0.146762,54510.0,54507.0,0.005]
[1725826410867,0.146764,54509.0,54506.0,0.146772]
[1725826411077,0.146764,54509.0,54508.0,0.007]
[1725826411288,0.146764,54509.0,54508.0,0.012]
[1725826411518,0.146764,54509.0,54508.0,0.005]
[1725826412510,0.146764,54509.0,54507.0,0.007]
[1725826412970,0.146764,54509.0,54507.0,0.005]
[1725826413408,0.146764,54509.0,54508.0,0.008]
[1725826413621,0.146764,54509.0,54506.0,0.000814]
[1725826413833,0.146764,54509.0,54507.0,0.014]
[1725826414264,0.146764,54509.0,54507.0,0.008]
[1725826415584,0.146764,54509.0,54508.0,0.006]
[1725826416070,0.146764,54509.0,54507.0,0.008]
[1725826416515,0.146764,54509.0,54507.0,0.014]
[1725826416730,0.146764,54509.0,54507.0,0.006]
[1725826416944,0.146764,54509.0,54506.0,0.000814]
[1725826417166,0.146764,54509.0,54508.0,0.014]
[1725826417390,0.146764,54509.0,54508.0,0.006]
[1725826418500,0.20176739,54509.0,54508.0,0.006]
[1725826418721,0.20176739,54509.0,54506.0,0.000814]
[1725826418940,0.20176739,54509.0,54507.0,0.006]
[1725826419388,0.20176739,54509.0,54508.0,0.008]
[1725826419870,0.20176739,54509.0,54508.0,0.006]
[1725826420777,0.20176739,54509.0,54508.0,0.014]
[1725826421429,0.146764,54509.0,54508.0,0.014]
[1725826422296,0.22926909,54509.0,54508.0,0.014]
[1725826425414,0.146764,54509.0,54508.0,0.014]
[1725826426038,0.146764,54509.0,54508.0,0.015628]
[1725826427339,0.21009292,54509.0,54508.0,0.015628]
[1725826428200,0.23886137,54509.0,54508.0,0.015628]
[1725826428406,0.34886815,54509.0,54508.0,0.015628]
[1725826430361,0.23886137,54509.0,54508.0,0.015628]
[1725826432295,0.37636985,54509.0,54508.0,0.015628]
[1725826432972,0.37676426,54509.0,54508.0,0.015628]
[1725826434100,0.34799581,54509.0,54508.0,0.015628]
[1725826434765,0.21013171,54509.0,54508.0,0.015628]
[1725826437393,0.23890039,54509.0,54508.0,0.015628]
[1725826437590,0.21013171,54509.0,54508.0,0.015628]
[1725826438084,0.21096035,54509.0,54508.0,0.015628]
[1725826440552,0.50448935,54509.0,54508.0,0.015628]
[1725826441710,0.64238225,54509.0,54508.0,0.015628]
[1725826441896,0.50448935,54509.0,54508.0,0.015628]
[1725826442110,0.50448935,54509.0,54508.0,0.016442]
[1725826443004,0.53325791,54509.0,54508.0,0.016442]
[1725826443466,0.67115081,54509.0,54508.0,0.016442]
[1725826444600,0.64238225,54509.0,54508.0,0.016442]
[1725826445296,0.50448935,54509.0,54508.0,0.016442]
[1725826446219,0.53325817,54509.0,54508.0,0.016442]
[1725826446724,1.12031617,54509.0,54508.0,0.016442]
[1725826448020,1.12031617,54509.0,54508.0,0.010442]
[1725826448240,0.86302872,54509.0,54508.0,0.002442]
[1725826448465,1.14768826,54509.0,54508.0,0.002442]
[1725826448663,1.14868826,54509.0,54508.0,0.002442]
[1725826450400,1.01079472,54509.0,54508.0,0.002442]
[1725826451027,0.9820259,54509.0,54508.0,0.002442]
[1725826452766,1.01079645,54509.0,54508.0,0.002442]
[1725826454764,1.53809897,54509.0,54508.0,0.002442]
[1725826454990,1.65743679,54509.0,54508.0,0.002442]
[1725826455462,1.65843679,54509.0,54508.0,0.002442]
[1725826455901,1.65943679,54509.0,54508.0,0.002442]
[1725826456138,1.65843679,54509.0,54508.0,0.002442]
[1725826456600,1.65943679,54509.0,54508.0,0.004442]
[1725826457533,1.70877167,54509.0,54508.0,0.004442]
[1725826457755,1.70777167,54509.0,54508.0,0.003442]
[1725826458203,1.71677167,54509.0,54508.0,0.003442]
[1725826458428,1.70777167,54509.0,54508.0,0.002442]
[1725826458628,1.73377167,54509.0,54508.0,0.003442]
[1725826458912,1.73377167,54509.0,54506.0,0.000814]
[1725826458913,1.33293,54507.0,54506.0,0.000814]
[1725826459145,1.82618077,54507.0,54506.0,0.000814]
[1725826459418,1.82611114,54507.0,54506.0,0.000814]
[1725826460093,1.83811114,54507.0,54506.0,0.000814]
[1725826460335,1.65249801,54507.0,54506.0,0.000814]
[1725826460564,1.77627153,54507.0,54506.0,0.000814]
[1725826460798,1.65249801,54507.0,54506.0,0.000814]
[1725826461013,1.66349801,54507.0,54506.0,0.000814]
[1725826461657,1.66349801,54507.0,54506.0,0.002442]
[1725826463004,1.53962301,54507.0,54506.0,0.002442]
[1725826463453,1.59205922,54507.0,54506.0,0.002442]
[1725826463688,1.77704229,54507.0,54506.0,0.002442]
[1725826466336,1.80336642,54507.0,54506.0,0.002442]
[1725826469312,1.87697842,54507.0,54506.0,0.002442]
[1725826471138,1.87657571,54507.0,54506.0,0.002442]
[1725826473167,2.00219291,54507.0,54506.0,0.002442]
[1725826473412,2.1668337,54507.0,54506.0,0.002442]
[1725826474795,2.0412165,54507.0,54506.0,0.002442]
[1725826475022,1.76800324,54507.0,54506.0,0.002442]
[1725826475263,1.69159264,54507.0,54506.0,0.002442]
[1725826478984,1.69159264,54507.0,54506.0,0.146242]
[1725826478985,1.39805264,54507.0,54506.0,0.146242]
[1725826479206,1.50779636,54507.0,54506.0,0.146242]
[1725826481128,1.51331791,54507.0,54506.0,0.146242]
[1725826481357,1.49031791,54507.0,54506.0,0.146242]
[1725826481824,1.50531791,54507.0,54506.0,0.146242]
[1725826482484,1.39555744,54507.0,54506.0,0.146242]
[1725826483175,1.38455744,54507.0,54506.0,0.146242]
[1725826483426,1.39055744,54507.0,54506.0,0.147242]
[1725826484156,1.38470585,54507.0,54506.0,0.147242]
[1725826485498,1.30235735,54507.0,54506.0,0.147242]
[1725826485714,1.38472835,54507.0,54506.0,0.147242]
[1725826486163,1.38554335,54507.0,54506.0,0.147242]
[1725826486618,1.30317235,54507.0,54506.0,0.147242]
[1725826486837,1.38555042,54507.0,54506.0,0.147242]
[1725826487075,1.30317235,54507.0,54506.0,0.147242]
[1725826487296,1.38555312,54507.0,54506.0,0.147242]
[1725826488492,1.38557631,54507.0,54506.0,0.147242]
[1725826488707,1.30317235,54507.0,54506.0,0.147242]
[1725826489356,1.36162575,54507.0,54506.0,0.147242]
[1725826489568,1.30317235,54507.0,54506.0,0.147242]
[1725826490437,1.36172618,54507.0,54506.0,0.147242]
[1725826490625,1.39049914,54507.0,54506.0,0.147242]
[1725826491380,1.50029714,54507.0,54506.0,0.147242]
[1725826493412,1.39049914,54507.0,54506.0,0.147242]
[1725826496016,1.33194531,54507.0,54506.0,0.147242]
[1725826496223,1.38961867,54507.0,54506.0,0.147242]
[1725826497708,1.36084571,54507.0,54506.0,0.147242]
[1725826498741,1.51459107,54507.0,54506.0,0.147242]
[1725826499186,1.54336409,54507.0,54506.0,0.147242]
[1725826499367,1.70834199,54507.0,54506.0,0.147242]
[1725826499591,1.54336409,54507.0,54506.0,0.147242]
[1725826499795,1.70834199,54507.0,54506.0,0.147242]
[1725826499995,1.54336409,54507.0,54506.0,0.147242]
[1725826500428,1.51459107,54507.0,54506.0,0.147242]
[1725826500878,1.54336389,54507.0,54506.0,0.147242]
[1725826504486,1.54292351,54507.0,54506.0,0.147242]
[1725826504704,1.70810266,54507.0,54506.0,0.147242]
[1725826507633,1.67932984,54507.0,54506.0,0.147242]
[1725826508715,1.67932984,54507.0,54506.0,0.238862]
[1725826510443,1.81059819,54507.0,54506.0,0.238862]
[1725826511088,1.83937106,54507.0,54506.0,0.238862]
[1725826511302,1.67419191,54507.0,54506.0,0.238862]
[1725826514951,1.67231478,54507.0,54506.0,0.238862]
[1725826516273,1.51856942,54507.0,54506.0,0.238862]
[1725826516516,0.90655058,54507.0,54506.0,0.248862]
[1725826517430,0.60901058,54507.0,54506.0,0.248862]
[1725826517873,0.60901058,54507.0,54506.0,0.252862]
[1725826517874,0.58023771,54507.0,54506.0,0.252862]
[1725826518076,0.57423771,54507.0,54506.0,0.251862]
[1725826518526,0.57523771,54507.0,54506.0,0.251862]
[1725826518946,0.57423771,54507.0,54506.0,0.251862]
[1725826519397,0.60300806,54507.0,54506.0,0.253862]
[1725826519610,0.6062287,54507.0,54506.0,0.253862]
[1725826522218,0.3126887,54507.0,54506.0,0.253862]
[1725826524462,0.31343411,54507.0,54506.0,0.253862]
[1725826528659,0.05060013,54507.0,54506.0,0.253862]
[1725826528874,0.16484136,54509.0,54507.0,0.1458]
[1725826529088,0.31160536,54509.0,54508.0,0.1458]
[1725826529322,0.60513436,54509.0,54508.0,0.1458]
[1725826529549,0.76088156,54509.0,54508.0,0.1458]
[1725826529771,0.76088156,54509.0,54506.0,0.100062]
[1725826529772,0.14677,54507.0,54506.0,0.164162]
[1725826529992,0.23500019,54507.0,54506.0,0.164162]
[1725826530223,0.82208019,54507.0,54506.0,0.160162]
[1725826530446,0.9598577,54507.0,54506.0,0.160162]
[1725826530677,1.0598577,54507.0,54506.0,0.160162]
[1725826531358,1.0598577,54507.0,54506.0,0.158162]
[1725826531577,0.92408019,54507.0,54506.0,0.158162]
[1725826531798,1.06186174,54507.0,54506.0,0.158162]
[1725826532484,0.92408019,54507.0,54506.0,0.158162]
[1725826532700,0.9546668,54507.0,54506.0,0.158162]
[1725826533135,1.09245109,54507.0,54506.0,0.158162]
[1725826533354,0.9546668,54507.0,54506.0,0.158162]
[1725826533581,0.9526668,54507.0,54506.0,0.158162]
[1725826533801,1.09245107,54507.0,54506.0,0.158162]
[1725826534022,1.09244959,54507.0,54506.0,0.158162]
[1725826534238,1.09244946,54507.0,54506.0,0.158162]
[1725826534456,0.9546668,54507.0,54506.0,0.158162]
[1725826535109,0.9536668,54507.0,54506.0,0.158162]
[1725826535339,0.9546668,54507.0,54506.0,0.158162]
[1725826535744,0.9536668,54507.0,54506.0,0.158162]
[1725826536184,0.9546668,54507.0,54506.0,0.158162]
[1725826538646,1.1190378,54507.0,54506.0,0.158162]
[1725826538868,1.1200378,54507.0,54506.0,0.158162]
[1725826539273,1.1190378,54507.0,54506.0,0.158162]
[1725826539497,1.1170378,54507.0,54506.0,0.158162]
[1725826539934,1.1190378,54507.0,54506.0,0.158162]
[1725826540354,1.1200378,54507.0,54506.0,0.158162]
[1725826542897,0.9546668,54507.0,54506.0,0.158162]
[1725826543337,1.1200378,54507.0,54506.0,0.158162]
[1725826543558,1.01925479,54507.0,54506.0,0.158162]
[1725826544983,1.18462579,54507.0,54506.0,0.158162]
[1725826548147,1.01925479,54507.0,54506.0,0.158162]
[1725826548575,1.18462579,54507.0,54506.0,0.158162]
[1725826549676,1.15585418,54507.0,54506.0,0.234762]
[1725826550333,1.44939418,54507.0,54506.0,0.234762]
[1725826550539,1.42227037,54507.0,54506.0,0.234762]
[1725826551712,1.42227037,54507.0,54506.0,0.170662]
[1725826559464,1.4222159,54507.0,54506.0,0.170662]
[1725826561617,1.6081888,54507.0,54506.0,0.170662]
[1725826561832,1.4222159,54507.0,54506.0,0.170662]
[1725826565787,1.03953084,54507.0,54506.0,0.170662]
[1725826566020,1.12776103,54507.0,54506.0,0.170662]
[1725826566484,1.27453103,54507.0,54506.0,0.170662]
[1725826568457,1.25999671,54507.0,54506.0,0.170662]
[1725826570186,1.25999671,54507.0,54506.0,0.233062]
[1725826571590,1.41554929,54507.0,54506.0,0.233062]
[1725826571825,1.97986292,54507.0,54506.0,0.094062]
[1725826572063,1.94952033,54507.0,54506.0,0.094062]
[1725826572522,1.90018545,54507.0,54506.0,0.094062]
[1725826572740,1.74463287,54507.0,54506.0,0.094062]
[1725826572976,1.74463287,54507.0,54506.0,0.095062]
[1725826572977,1.70248066,54507.0,54506.0,0.095062]
[1725826573683,1.86772074,54507.0,54506.0,0.095062]
[1725826573897,1.86596756,54507.0,54506.0,0.095062]
[1725826574325,1.68372299,54507.0,54506.0,0.094062]
[1725826574818,1.71172299,54507.0,54506.0,0.095062]
[1725826575020,1.69772299,54507.0,54506.0,0.094062]
[1725826575442,1.70972299,54507.0,54506.0,0.094062]
[1725826577489,1.70530389,54507.0,54506.0,0.094062]
[1725826577712,1.89028696,54507.0,54506.0,0.094062]
[1725826577925,1.99577405,54507.0,54506.0,0.094062]
[1725826578590,1.94643917,54507.0,54506.0,0.094062]
[1725826580526,1.89028696,54507.0,54506.0,0.094062]
[1725826582373,1.89894898,54507.0,54506.0,0.094062]
[1725826585568,0.146826,54486.0,54485.0,0.00163]
[1725826585834,0.5923737,54486.0,54485.0,0.00163]
[1725826586085,0.9860267,54486.0,54485.0,0.13983]
[1725826586324,1.30846205,54486.0,54485.0,0.13983]
[1725826586603,1.44599151,54486.0,54485.0,0.13983]
[1725826587072,1.44599151,54486.0,54485.0,0.14083]
[1725826587296,1.44599151,54486.0,54485.0,0.14183]
[1725826587521,1.30846205,54486.0,54485.0,0.13983]
[1725826587749,1.31146205,54486.0,54485.0,0.13983]
[1725826587986,1.4563612,54486.0,54485.0,0.13983]
[1725826588453,1.31246205,54486.0,54485.0,0.13983]
[1725826589582,1.42238807,54486.0,54485.0,0.13983]
[1725826590019,1.42638807,54486.0,54485.0,0.13983]
[1725826590529,1.42238807,54486.0,54485.0,0.13983]
[1725826590737,1.42538807,54486.0,54485.0,0.13983]
[1725826590943,1.34301557,54486.0,54485.0,0.13983]
[1725826591609,1.45294159,54486.0,54485.0,0.13983]
[1725826593183,1.6119887,54486.0,54485.0,0.13983]
[1725826593600,1.50206268,54486.0,54485.0,0.13983]
[1725826594532,1.34301557,54486.0,54485.0,0.13983]
[1725826596149,1.48054503,54486.0,54485.0,0.13983]
[1725826596369,1.71029857,54486.0,54485.0,0.00163]
[1725826596628,1.76645078,54486.0,54485.0,0.00163]
[1725826597167,1.98085291,54486.0,54485.0,0.00163]
[1725826597422,2.16583598,54486.0,54485.0,0.00163]
[1725826597644,2.00076873,54486.0,54485.0,0.00163]
[1725826598340,2.16583598,54486.0,54485.0,0.00163]
[1725826598566,2.00076873,54486.0,54485.0,0.00163]
[1725826600409,1.95143385,54486.0,54485.0,0.00163]
[1725826601306,1.67581346,54486.0,54485.0,0.00163]
[1725826601527,1.70789144,54486.0,54485.0,0.00163]
[1725826602189,1.61966125,54486.0,54485.0,0.00163]
[1725826602402,1.70789144,54486.0,54485.0,0.00163]
[1725826606273,1.70493903,54486.0,54485.0,0.00163]
[1725826606724,1.8899221,54486.0,54485.0,0.00163]
[1725826609015,1.70493903,54486.0,54485.0,0.00163]
[1725826611199,1.70576573,54486.0,54485.0,0.00163]
[1725826615969,1.70448781,54486.0,54485.0,0.00163]
[1725826617621,1.86900134,54486.0,54485.0,0.00163]
[1725826617835,1.70448781,54486.0,54485.0,0.00163]
[1725826618493,1.88947088,54486.0,54485.0,0.00163]
[1725826618703,2.05398441,54486.0,54485.0,0.00163]
[1725826620556,2.18527132,54486.0,54485.0,0.00163]
[1725826620778,2.05398441,54486.0,54485.0,0.00163]
[1725826621588,2.02107275,54486.0,54485.0,0.00163]
[1725826621792,2.18569596,54486.0,54485.0,0.00163]
[1725826622634,1.74785949,54486.0,54485.0,0.00163]
[1725826622856,1.32260462,54486.0,54485.0,0.14033]
[1725826623073,1.41083481,54486.0,54485.0,0.14033]
[1725826626557,1.57547597,54486.0,54485.0,0.14033]
[1725826627668,1.5435496,54486.0,54485.0,0.14033]
[1725826635217,1.54349435,54486.0,54485.0,0.14033]
[1725826637358,2.02213042,54486.0,54485.0,0.14033]
[1725826637601,1.78528214,54486.0,54485.0,0.14033]
[1725826637826,2.02278293,54486.0,54485.0,0.14033]
[1725826638061,1.72912993,54486.0,54485.0,0.14033]
[1725826638549,2.02284075,54486.0,54485.0,0.14033]
[1725826638784,1.83714735,54486.0,54485.0,0.14033]
[1725826639017,1.54349435,54486.0,54485.0,0.14033]
[1725826639310,1.4616754,54486.0,54485.0,0.14033]
[1725826639523,1.54990559,54486.0,54485.0,0.14033]
[1725826640854,1.19819316,54486.0,54485.0,0.14033]
[1725826641339,1.34501916,54486.0,54485.0,0.14033]
[1725826642513,1.12070898,54486.0,54485.0,0.14033]
[1725826643187,1.41436198,54486.0,54485.0,0.14033]
[1725826648481,0.19834679,54486.0,54485.0,0.1683758]
[1725826648710,0.11833043,54486.0,54485.0,0.590817]
[1725826648960,0.007,54486.0,54485.0,0.590817]
[1725826649185,0.007,54486.0,54485.0,0.592817]
[1725826649417,0.05503644,54489.0,54488.0,0.1585]
[1725826649645,0.05503644,54489.0,54488.0,0.1515]
[1725826650331,0.05503644,54490.0,54489.0,0.1465]
[1725826650810,0.05503644,54490.0,54489.0,0.1505]
[1725826651270,0.30184944,54491.0,54489.0,0.1495]
[1725826651494,0.30184944,54491.0,54490.0,0.0853]
[1725826651724,0.15503644,54491.0,54490.0,0.0853]
[1725826651950,0.15503644,54491.0,54490.0,0.0833]
[1725826652450,0.101,54491.0,54490.0,0.0833]
[1725826652909,0.248813,54491.0,54490.0,0.0833]
[1725826653375,0.30274589,54491.0,54490.0,0.0833]
[1725826653609,0.30374589,54491.0,54490.0,0.0883]
[1725826653828,0.33136766,54491.0,54490.0,0.0883]
[1725826654092,0.248813,54491.0,54490.0,0.0883]
[1725826654322,0.62483501,54491.0,54490.0,0.1535]
[1725826655021,0.62483501,54491.0,54490.0,0.1515]
[1725826655236,0.542439,54491.0,54490.0,0.1515]
[1725826656254,0.91846101,54491.0,54490.0,0.1515]
[1725826656491,1.07097024,54491.0,54490.0,0.1515]
[1725826657742,0.98857423,54491.0,54490.0,0.1515]
[1725826657956,1.05827481,54491.0,54490.0,0.1515]
[1725826658614,1.05825474,54491.0,54490.0,0.1515]
[1725826658837,1.46168385,54491.0,54490.0,0.1515]
[1725826659051,1.30917462,54491.0,54490.0,0.1515]
[1725826659482,1.19937151,54491.0,54490.0,0.1515]
[1725826659696,1.30917462,54491.0,54490.0,0.1515]
[1725826660580,0.92752353,54491.0,54490.0,0.1515]
[1725826661053,1.07433653,54491.0,54490.0,0.1515]
[1725826661701,1.07433161,54491.0,54490.0,0.1515]
[1725826662822,1.17433161,54491.0,54490.0,0.1515]
[1725826664210,1.3524164,54491.0,54490.0,0.1515]
[1725826664416,1.33804823,54491.0,54490.0,0.1515]
[1725826664835,1.33804823,54491.0,54490.0,0.0863]
[1725826666059,1.15996344,54491.0,54490.0,0.0863]
[1725826667078,1.26976655,54491.0,54490.0,0.0863]
[1725826667779,1.09198828,54491.0,54490.0,0.0863]
[1725826667990,1.09198828,54491.0,54490.0,0.1475]
[1725826668633,1.17435571,54491.0,54490.0,0.1475]
[1725826670191,1.09198828,54491.0,54490.0,0.1475]
[1725826670620,1.29803341,54491.0,54490.0,0.1475]
[1725826671507,1.29884841,54491.0,54490.0,0.1475]
[1725826672611,1.1615697,54491.0,54490.0,0.1475]
[1725826674755,1.2351927,54491.0,54490.0,0.1475]
[1725826676186,1.1615697,54491.0,54490.0,0.1475]
[1725826676431,1.27145497,54491.0,54490.0,0.1475]
[1725826677766,1.1615697,54491.0,54490.0,0.1475]
[1725826678223,1.27146519,54491.0,54490.0,0.1475]
[1725826678460,1.16183618,54491.0,54490.0,0.1475]
[1725826678907,1.29921124,54491.0,54490.0,0.1475]
[1725826679143,1.18175827,54491.0,54490.0,0.1475]
[1725826680318,1.09933407,54491.0,54490.0,0.1475]
[1725826680571,0.88814489,54491.0,54490.0,0.1495]
[1725826680808,0.59451889,54491.0,54490.0,0.164613]
[1725826681041,0.56704444,54491.0,54490.0,0.164613]
[1725826681998,0.51208207,54491.0,54490.0,0.164613]
[1725826682232,0.5670459,54491.0,54490.0,0.1495]
[1725826682723,0.51208207,54491.0,54490.0,0.1495]
[1725826683379,0.5670459,54491.0,54490.0,0.1495]
[1725826684290,0.5670459,54491.0,54490.0,0.15113]
[1725826685431,0.51208207,54491.0,54490.0,0.15113]
[1725826689255,0.69322578,54491.0,54490.0,0.15113]
[1725826690433,0.58324479,54491.0,54490.0,0.15113]
[1725826692246,0.72072103,54491.0,54490.0,0.15113]
[1725826694393,0.58324479,54491.0,54490.0,0.15113]
[1725826695284,0.51208207,54491.0,54490.0,0.15113]
[1725826695504,0.58209846,54491.0,54490.0,0.15113]
[1725826696880,0.51208207,54491.0,54490.0,0.15113]
[1725826697113,0.58227352,54491.0,54490.0,0.15113]
[1725826701895,0.58162006,54491.0,54490.0,0.15113]
[1725826703951,0.31716599,54491.0,54490.0,0.15113]
[1725826706883,0.31700397,54491.0,54490.0,0.15113]
[1725826707955,0.61062997,54491.0,54490.0,0.15113]
[1725826709264,0.31700397,54491.0,54490.0,0.15113]
[1725826709697,0.45469643,54491.0,54490.0,0.15113]
[1725826709976,0.20788343,54491.0,54490.0,0.297945]
[1725826710185,0.18034906,54491.0,54490.0,0.297945]
[1725826710408,0.08343576,54491.0,54490.0,0.297945]
[1725826711067,0.08343576,54491.0,54490.0,0.15113]
[1725826712489,0.08342741,54491.0,54490.0,0.15113]
[1725826712707,0.08342741,54491.0,54490.0,0.2398165]
[1725826714297,0.08342741,54491.0,54490.0,0.15113]
[1725826716476,0.0834248,54491.0,54490.0,0.15113]
[1725826719202,0.0834248,54491.0,54490.0,0.88887704]
[1725826719424,0.000815,54491.0,54490.0,0.88887704]
[1725826719860,0.08261487,54494.0,54493.0,0.002]
[1725826720074,0.08261487,54495.0,54494.0,0.002]
[1725826720300,0.22941687,54495.0,54494.0,0.1475]
[1725826720503,0.32941687,54495.0,54494.0,0.1475]
[1725826720901,0.18261487,54495.0,54494.0,0.1475]
[1725826721160,0.15507813,54495.0,54494.0,0.2074573]
[1725826721375,0.08261487,54497.0,54496.0,0.0815]
[1725826721584,0.18261572,54498.0,54497.0,0.1465]
[1725826721755,0.1,54498.0,54497.0,0.1465]
[1725826722165,0.1,54498.0,54497.0,0.1455]
[1725826722382,0.1,54498.0,54497.0,0.1445]
[1725826722876,0.101,54498.0,54497.0,0.21808743]
[1725826723095,0.33140972,54498.0,54497.0,0.22508743]
[1725826723542,0.248794,54498.0,54497.0,0.22508743]
[1725826724242,0.248794,54498.0,54497.0,0.1585]
[1725826724566,0.7420031,54498.0,54497.0,0.1575]
[1725826724786,0.7420031,54498.0,54497.0,0.015]
[1725826724787,1.0355911,54498.0,54497.0,0.015]
[1725826725007,1.09835787,54498.0,54497.0,0.015]
[1725826726112,1.09831467,54498.0,54497.0,0.015]
[1725826727419,0.98820357,54498.0,54497.0,0.015]
[1725826727632,1.36413266,54498.0,54497.0,0.014]
[1725826727863,1.25401638,54498.0,54497.0,0.014]
[1725826728994,1.39165951,54498.0,54497.0,0.014]
[1725826729227,1.25401638,54498.0,54497.0,0.014]
[1725826729464,1.39166119,54498.0,54497.0,0.014]
[1725826729894,1.25401638,54498.0,54497.0,0.014]
[1725826730574,1.28279331,54498.0,54497.0,0.014]
[1725826731634,1.28179331,54498.0,54497.0,0.014]
[1725826732060,1.43660251,54498.0,54497.0,0.014]
[1725826732276,1.60283396,54498.0,54497.0,0.014]
[1725826732939,1.1334237,54498.0,54497.0,0.014]
[1725826733155,1.2254085,54498.0,54497.0,0.014]
[1725826733840,1.2254085,54498.0,54497.0,0.007]
[1725826734055,0.734065,54491.0,54490.0,0.00163]
[1725826734301,0.87939481,54491.0,54490.0,0.00163]
[1725826734720,0.90817408,54491.0,54490.0,0.00163]
[1725826735165,0.90817408,54491.0,54490.0,0.00563]
[1725826735380,0.90817408,54491.0,54490.0,0.00963]
[1725826736233,0.90931117,54491.0,54490.0,0.00963]
[1725826738422,0.79921393,54491.0,54490.0,0.00963]
[1725826739288,0.79921393,54491.0,54490.0,0.01063]
[1725826740125,0.76284427,54491.0,54490.0,0.01063]
[1725826740961,0.46921827,54491.0,54490.0,0.15743]
[1725826741805,0.49678471,54491.0,54490.0,0.15743]
[1725826742420,0.5518335,54491.0,54490.0,0.15743]
[1725826742618,0.49678471,54491.0,54490.0,0.15743]
[1725826743087,0.53572432,54491.0,54490.0,0.15743]
[1725826744480,0.64581425,54491.0,54490.0,0.15743]
[1725826744689,0.53572432,54491.0,54490.0,0.15743]
[1725826745726,0.64581425,54491.0,54490.0,0.15743]
[1725826745941,0.53572432,54491.0,54490.0,0.15743]
[1725826747679,0.50694505,54491.0,54490.0,0.15743]
[1725826748330,0.19763358,54491.0,54490.0,0.15743]
[1725826749335,0.49125958,54491.0,54490.0,0.15743]
[1725826750940,0.52003776,54491.0,54490.0,0.15743]
[1725826751934,0.02877818,54491.0,54490.0,0.173336]
[1725826752181,0.08383621,54491.0,54490.0,0.173336]
[1725826752421,0.02877818,54491.0,54490.0,0.173336]
[1725826752660,0.08383621,54491.0,54490.0,0.15743]
[1725826753422,0.02877818,54491.0,54490.0,0.597876]
[1725826753655,0.02877818,54491.0,54490.0,1.185138]
[1725826754327,0.02877818,54491.0,54490.0,1.181138]
[1725826754567,0.02977818,54491.0,54490.0,1.31623782]
[1725826754814,0.02977818,54491.0,54490.0,1.31223782]
[1725826755045,0.03077818,54491.0,54490.0,1.31923782]
[1725826755302,0.02977818,54491.0,54490.0,1.31223782]
[1725826755752,0.02977818,54491.0,54490.0,1.31823782]
[1725826755967,0.02977818,54491.0,54490.0,1.02460682]
[1725826756192,0.03077818,54491.0,54490.0,1.03860682]
[1725826756617,0.02977818,54491.0,54490.0,1.02460682]
[1725826757354,0.03077818,54491.0,54490.0,1.03860682]
[1725826757565,0.001,54491.0,54490.0,1.02460682]
[1725826757778,0.002,54491.0,54490.0,1.03860682]
[1725826760770,0.0307748,54491.0,54490.0,1.03860682]
[1725826761019,0.0307748,54491.0,54490.0,0.911507]
[1725826766430,0.31115961,54499.0,54498.0,0.001]
[1725826766643,0.40292839,54499.0,54498.0,0.001]
[1725826766857,0.45795061,54499.0,54498.0,0.001]
[1725826767510,0.40292839,54499.0,54498.0,0.001]
[1725826767753,0.45795061,54499.0,54498.0,0.001]
[1725826767992,0.45895061,54499.0,54498.0,0.007]
[1725826768368,0.40392839,54499.0,54498.0,0.007]
[1725826769262,0.43080215,54499.0,54498.0,0.007]
[1725826769476,0.43180215,54499.0,54498.0,0.013]
[1725826770132,0.45995061,54499.0,54498.0,0.013]
[1725826770776,0.40492839,54499.0,54498.0,0.013]
[1725826771430,0.45995061,54499.0,54498.0,0.013]
[1725826772761,0.48872506,54499.0,54498.0,0.013]
[1725826774589,0.43370284,54499.0,54498.0,0.013]